lending/lending_fUSD_20260222
["ID","MTS","AMOUNT","RATE_DAILY","PERIOD"]
[406309510,1771719031363,-252.31,0.000133,2]
[406309511,1771719031373,-211.72188422,0.000133,2]
[406309512,1771719031386,-47.27811578,0.000133,2]
[406309513,1771719031396,-500.0,0.0001336,2]
[406309514,1771719031405,-517.11444,0.00016,2]
[406309515,1771719031414,-516.0,0.00016,2]
[406309516,1771719031423,-167.17,0.00016712,2]
[406309517,1771719031433,-173.74378417,0.00025304,2]
[406309518,1771719031442,-185.0,0.00032634,7]
[406309519,1771719031452,-185.0,0.00032669,2]
[406309520,1771719031462,-184.0,0.00032813,2]
[406309521,1771719031471,-1000.0,0.000329,120]
[406309522,1771719031480,-1000.0,0.000329,2]
[406309523,1771719031489,-184.0,0.00033286,2]
[406309524,1771719031502,-184.0,0.00033498,2]
[406309525,1771719031512,-184.0,0.0003352,2]
[406309526,1771719031522,-184.0,0.00033627,2]
[406309527,1771719031532,-184.0,0.0003376,2]
[406309528,1771719031541,-168.0,0.00033782,2]
[406309529,1771719031551,-184.0,0.00034023,2]
[406309530,1771719031560,-1600.0,0.00034054,3]
[406309531,1771719031570,-168.0,0.00034055,2]
[406309532,1771719031579,-184.0,0.00034158,2]
[406309533,1771719031590,-184.0,0.00034231,7]
[406309534,1771719031600,-186.0,0.00034417,7]
[406309536,1771719031609,-184.0,0.00034567,2]
[406309538,1771719031618,-184.0,0.00034571,2]
[406309539,1771719031627,-150.0,0.00034571,2]
[406309540,1771719031636,-400.0,0.00034571,3]
[406309542,1771719031646,-400.0,0.00034571,3]
[406309543,1771719031654,-400.0,0.00034571,2]
[406309544,1771719031663,-184.0,0.0003478,2]
[406309546,1771719031672,-185.0,0.0003484,2]
[406309548,1771719031681,-184.0,0.00034914,7]
[406309549,1771719031693,-184.0,0.00034928,2]
[406309551,1771719031702,-210.229,0.00035068,120]
[406309553,1771719031711,-185.0,0.00035185,2]
[406309554,1771719031720,-300.0,0.00035616,120]
[406309555,1771719031729,-168.0,0.00035635,2]
[406309556,1771719031738,-184.0,0.0003564,2]
[406309557,1771719031747,-168.0,0.00035644,2]
[406309558,1771719031756,-186.0,0.00035686,2]
[406309559,1771719031766,-166.66,0.00035811,30]
[406309560,1771719031775,-653.011,0.00035899,43]
[406309561,1771719031785,-423.507266,0.00036202,2]
[406309562,1771719031801,-76.492734,0.00036202,2]
[406309563,1771719031811,-1000.0,0.00036432,2]
[406309564,1771719031821,-166.66,0.00036565,30]
[406309565,1771719031830,-1431.70181748,0.00036696,3]
[406309566,1771719031842,-808.29818252,0.00036696,3]
[406309567,1771719031851,-200.0,0.00037084,3]
[406309568,1771719031860,-545.89117056,0.00037084,2]
[406309569,1771719031875,-14.10882944,0.00037084,2]
[406309570,1771719031883,-200.0,0.00037084,3]
[406309571,1771719031896,-176.48532077,0.000373,2]
[406309572,1771719031908,-1703.04317917,0.000373,2]
[406309573,1771719031920,-120.47150006,0.000373,2]
[406309574,1771719031932,-166.66,0.00037319,30]
[406309575,1771719031942,-848.5,0.0003751,30]
[406309576,1771719031953,-150.0,0.00037613,2]
[406309577,1771719031962,-97.13707666,0.00037795,120]
[406309578,1771719031973,-116.86292334,0.00037795,120]
[406309579,1771719031982,-160.0,0.00037795,120]
[406309580,1771719031991,-150.0,0.00037795,3]
[406309581,1771719032001,-166.66,0.00038073,30]
[406309582,1771719032011,-300.0,0.00038356,120]
[406309583,1771719032020,-166.66,0.00038827,30]
[406309584,1771719032030,-1500.0,0.00039345,120]
[406309585,1771719032040,-3240.0,0.00039448,120]
[406309586,1771719032049,-240.0,0.00039543,5]
[406309587,1771719032059,-166.66,0.00039581,30]
[406309588,1771719032068,-4828.8,0.00039809,2]
[406309589,1771719032077,-152.0,0.0004,120]
[406309590,1771719032090,-150.5,0.0004,2]
[406309591,1771719032101,-855.46737255,0.00040558,2]
[406309592,1771719032110,-884.25866852,0.00040558,2]
[406309593,1771719032121,-307.19972653,0.00040558,2]
[406309594,1771719032131,-458.66921193,0.00040558,2]
[406309595,1771719032141,-371.30350818,0.00040558,2]
[406309596,1771719032150,-518.44464902,0.00040558,2]
[406309597,1771719032159,-306.15563292,0.00040558,2]
[406309598,1771719032169,-500.0,0.00040558,2]
[406309599,1771719032178,-1081.79077738,0.00040558,2]
[406309600,1771719032188,-855.46737255,0.00040558,2]
[406309601,1771719032197,-884.25866852,0.00040558,2]
[406309602,1771719032207,-300.0,0.00040558,2]
[406309603,1771719032216,-307.19972653,0.00040558,2]
[406309604,1771719032225,-458.66921193,0.00040558,2]
[406309605,1771719032235,-371.30350818,0.00040558,2]
[406309606,1771719032244,-518.44464902,0.00040558,2]
[406309607,1771719032253,-306.15563292,0.00040558,2]
[406309608,1771719032262,-1081.79077738,0.00040558,2]
[406309609,1771719032272,-500.0,0.00040572,30]
[406309610,1771719032281,-200.0,0.00040572,30]
[406309611,1771719032294,-150.0,0.00040572,2]
[406309612,1771719032304,-150.0,0.00040572,30]
[406309613,1771719032314,-700.0,0.000406,14]
[406309614,1771719032324,-500.0,0.00040627,30]
[406309615,1771719032335,-150.0,0.00040627,30]
[406309616,1771719032344,-500.0,0.00040682,30]
[406309617,1771719032354,-150.0,0.00040682,30]
[406309618,1771719032366,-152.0,0.000407,120]
[406309619,1771719032375,-1400.0,0.000407,14]
[406309620,1771719032384,-545.98749395,0.00040736,30]
[406309621,1771719032395,-167.1623138,0.00040736,30]
[406309622,1771719032405,-152.23086807,0.00040762,28]
[406309623,1771719032415,-337.50625792,0.00040762,2]
[406309624,1771719032425,-174.43515578,0.00040762,2]
[406309625,1771719032435,-5256.71568929,0.00040762,15]
[406309626,1771719032444,-1845.39163475,0.00040762,2]
[406309627,1771719032453,-2100.0,0.000408,14]
[406309628,1771719032463,-150.0,0.00040819,120]
[406309629,1771719032479,-150.5,0.0004083,2]
[406309630,1771719032491,-3626.51,0.0004084,2]
[406309631,1771719032500,-3626.51,0.0004084,2]
[406309632,1771719032510,-3626.51,0.0004084,2]
[406309633,1771719032519,-3626.51,0.0004084,2]
[406309634,1771719032529,-3626.51,0.0004084,2]
[406309635,1771719032538,-150.5,0.0004084,2]
[406309636,1771719032548,-150.5,0.0004084,2]
[406309637,1771719032557,-150.5,0.0004084,2]
[406309638,1771719032567,-150.5,0.0004084,2]
[406309639,1771719032576,-150.5,0.0004084,2]
[406309640,1771719032586,-150.5,0.0004084,2]
[406309641,1771719032595,-150.5,0.0004084,2]
[406309642,1771719032605,-150.5,0.0004084,2]
[406309643,1771719032614,-150.5,0.0004084,2]
[406309644,1771719032624,-150.5,0.0004084,2]
[406309645,1771719032633,-150.5,0.0004084,2]
[406309646,1771719032643,-150.5,0.0004084,2]
[406309647,1771719032652,-150.5,0.0004084,2]
[406309648,1771719032661,-150.5,0.0004084,2]
[406309649,1771719032671,-150.5,0.0004084,2]
[406309650,1771719032680,-150.5,0.0004084,2]
[406309651,1771719032689,-150.5,0.0004084,2]
[406309652,1771719032699,-150.5,0.0004084,2]
[406309653,1771719032709,-150.5,0.0004084,2]
[406309654,1771719032721,-150.5,0.0004084,2]
[406309655,1771719032731,-150.5,0.0004084,2]
[406309656,1771719032741,-150.5,0.0004084,2]
[406309657,1771719032752,-150.5,0.0004084,2]
[406309658,1771719032761,-150.5,0.0004084,2]
[406309659,1771719032771,-150.5,0.0004084,2]
[406309660,1771719032780,-150.5,0.0004084,2]
[406309661,1771719032790,-150.5,0.0004084,2]
[406309662,1771719032799,-150.5,0.0004084,2]
[406309663,1771719032808,-150.5,0.0004084,2]
[406309664,1771719032818,-150.5,0.0004084,2]
[406309665,1771719032827,-743.0,0.00040846,30]
[406309666,1771719032836,-151.0,0.00040847,14]
[406309667,1771719032846,-200.0,0.0004085,120]
[406309668,1771719032855,-5938.72044752,0.0004085,21]
[406309669,1771719032864,-66647.08812948,0.0004085,2]
[406309670,1771719032878,-2410.62805522,0.0004085,2]
[406309671,1771719032890,-716.51117773,0.0004085,2]
[406309672,1771719032902,-18627.76494947,0.0004085,2]
[406309673,1771719032913,-2518.78506904,0.0004085,2]
[406309674,1771719032925,-1422.63899574,0.0004085,2]
[406309675,1771719032938,-739.83242181,0.0004085,2]
[406309676,1771719032951,-907.22921895,0.0004085,2]
[406309677,1771719037544,-3623.50144814,0.0004085,2]
[406309678,1771719037556,-750.0,0.0004085,2]
[406309679,1771719037688,-292.43601662,0.0004085,2]
[406309681,1771719039606,-1253.1051494,0.0004085,2]
[406309682,1771719039617,-8830.11809286,0.0004085,2]
[406309683,1771719039656,-865.01,0.0004085,2]
[406309684,1771719040051,-372.80333372,0.0004085,2]
[406309685,1771719040062,-3608.27472446,0.0004085,2]
[406309686,1771719040074,-3561.99998,0.0004085,2]
[406309687,1771719040085,-13710.99408618,0.0004085,2]
[406309698,1771719044910,-1093.75766452,0.00025818,2]
[406309704,1771719045804,-115.24233548,0.00025818,2]
[406309705,1771719045814,-857.76689948,0.0004085,2]
[406309706,1771719045826,-7843.67436655,0.0004085,2]
[406309727,1771720029059,205.0,9.8e-05,2]
[406309728,1771720064164,4500.0,0.00013,15]
[406309746,1771720231572,-572.84682148,0.0001358,2]
[406309747,1771720231583,-1282.9342289,0.0001358,2]
[406309748,1771720231593,-150.0,0.00014853,2]
[406309749,1771720231602,-250.0,0.00015,2]
[406309750,1771720231611,-225.97,0.000151,2]
[406309751,1771720231620,-200.74208608,0.00015119,2]
[406309752,1771720231632,-953.94191315,0.00015119,2]
[406309753,1771720231712,-45.31600077,0.00015119,2]
[406309754,1771720231722,-4764.94500649,0.0001512,2]
[406309755,1771720231731,-175.15043052,0.00015173,2]
[406309756,1771720231741,-500.0,0.00015173,2]
[406309757,1771720231753,-300.0,0.00015348,2]
[406309758,1771720231762,-508.0,0.00016,2]
[406309759,1771720231771,-5000.0,0.000162,5]
[406309760,1771720231781,-1680.0,0.00016629,2]
[406309761,1771720231790,-300.0,0.00016791,2]
[406309762,1771720231800,-30505.72127674,0.00017,2]
[406309763,1771720231809,-249.441308,0.000171,7]
[406309764,1771720231818,-1352.0,0.00017361,2]
[406309765,1771720231827,-1400.0,0.000177,6]
[406309767,1771720231836,-250.0,0.00017737,2]
[406309769,1771720231845,-2800.0,0.000178,6]
[406309771,1771720231854,-480.56486959,0.00017899,2]
[406309773,1771720231865,-69.43513041,0.00017899,2]
[406309775,1771720231874,-1393.29155403,0.000179,6]
[406309777,1771720231885,-2026.81907933,0.000179,6]
[406309783,1771720237673,-610.00414217,0.000179,6]
[406309784,1771720237699,-169.88522447,0.000179,6]
[406309785,1771720237709,-667.46477553,0.000179,2]
[406309786,1771720237724,-304.0,0.000179,2]
[406309787,1771720237828,-1940.86018373,0.000179,2]
[406309788,1771720237837,-348.0,0.00017973,2]
[406309789,1771720237850,-151.0,0.00017989,2]
[406309790,1771720237861,-151.0,0.00017989,2]
[406309791,1771720237869,-151.0,0.00017989,2]
[406309792,1771720237878,-26.61337903,0.00017989,2]
[406309793,1771720237889,-124.38662097,0.00017989,2]
[406309794,1771720237898,-151.0,0.00017989,2]
[406309795,1771720237907,-151.0,0.00017989,2]
[406309796,1771720237916,-151.0,0.00017989,2]
[406309797,1771720237925,-151.0,0.00017989,2]
[406309798,1771720237936,-151.0,0.00017989,2]
[406309799,1771720237945,-151.0,0.00017989,2]
[406309801,1771720237954,-151.0,0.00017989,2]
[406309802,1771720237963,-151.0,0.00017989,2]
[406309803,1771720237972,-151.0,0.00017989,2]
[406309804,1771720237982,-151.0,0.00017989,2]
[406309805,1771720237991,-151.0,0.00017989,2]
[406309806,1771720238000,-151.0,0.00017989,2]
[406309807,1771720238009,-151.0,0.00017989,2]
[406309808,1771720238018,-151.0,0.00017989,2]
[406309809,1771720238028,-151.0,0.00017989,2]
[406309810,1771720238038,-151.0,0.00017989,2]
[406309811,1771720238047,-154.82,0.0001799,2]
[406309812,1771720238057,-154.82,0.0001799,2]
[406309813,1771720238066,-154.82,0.0001799,2]
[406309814,1771720238075,-154.82,0.0001799,2]
[406309815,1771720238086,-181.85750958,0.0001799,2]
[406309816,1771720238094,-500.0,0.00017998,2]
[406309817,1771720238103,-500.0,0.00017998,2]
[406309818,1771720238113,-500.0,0.00017998,2]
[406309819,1771720238122,-500.0,0.00017998,2]
[406309820,1771720238131,-500.0,0.00017998,2]
[406309821,1771720238141,-500.0,0.00017998,2]
[406309822,1771720238150,-500.0,0.00017998,2]
[406309823,1771720238159,-500.0,0.00017998,2]
[406309824,1771720238168,-500.0,0.00017998,2]
[406309825,1771720238176,-500.0,0.00017998,2]
[406309826,1771720238186,-500.0,0.00017998,2]
[406309827,1771720238196,-500.0,0.00017998,2]
[406309828,1771720238205,-500.0,0.00017998,2]
[406309829,1771720238214,-500.0,0.00017998,2]
[406309830,1771720238224,-500.0,0.00017998,2]
[406309831,1771720238234,-500.0,0.00017998,2]
[406309832,1771720238244,-500.0,0.00017998,2]
[406309833,1771720238253,-255.68032708,0.00017998,2]
[406309834,1771720238263,-500.0,0.00017998,2]
[406309835,1771720238273,-500.0,0.00017998,2]
[406309836,1771720238282,-500.0,0.00017998,2]
[406309837,1771720238291,-500.0,0.00017998,2]
[406309838,1771720238300,-500.0,0.00017998,2]
[406309839,1771720238310,-500.0,0.00017999,2]
[406309840,1771720238319,-12034.08107518,0.00017999,2]
[406309841,1771720238334,-1617.9145956,0.00017999,2]
[406309847,1771720239769,-240.503778,0.0001781,2]
[406309848,1771720239780,-180.35736521,0.00017999,2]
[406309849,1771720239979,-425.63,0.00017999,2]
[406309850,1771720239996,-86165.07006817,0.00017999,2]
[406309851,1771720240005,-150.99,0.00017999,2]
[406309852,1771720240014,-300.0,0.00017999,2]
[406309853,1771720240023,-666.0,0.00017999,2]
[406309854,1771720240032,-155.0,0.00017999,2]
[406309855,1771720240041,-809.41322249,0.00017999,2]
[406309856,1771720240050,-402.74358645,0.00017999,2]
[406309857,1771720240059,-500.0,0.00017999,2]
[406309858,1771720240067,-231.71838684,0.00017999,2]
[406309859,1771720240076,-500.0,0.00017999,2]
[406309860,1771720240085,-500.0,0.00017999,2]
[406309861,1771720240094,-500.0,0.00017999,2]
[406309862,1771720240103,-500.0,0.00017999,2]
[406309863,1771720240112,-500.0,0.00017999,2]
[406309864,1771720240121,-500.0,0.00017999,2]
[406309865,1771720240130,-500.0,0.00017999,2]
[406309866,1771720240139,-500.0,0.00017999,2]
[406309867,1771720240148,-500.0,0.00017999,2]
[406309868,1771720240157,-500.0,0.00017999,2]
[406309869,1771720240167,-500.0,0.00017999,2]
[406309870,1771720240176,-500.0,0.00017999,2]
[406309871,1771720240185,-500.0,0.00017999,2]
[406309872,1771720240195,-500.0,0.00017999,2]
[406309873,1771720240204,-500.0,0.00017999,2]
[406309874,1771720240213,-450.29802828,0.00017999,2]
[406309875,1771720240222,-500.0,0.00017999,2]
[406309876,1771720240231,-500.0,0.00017999,2]
[406309877,1771720240240,-500.0,0.00017999,2]
[406309878,1771720240248,-500.0,0.00017999,2]
[406309879,1771720240258,-500.0,0.00017999,2]
[406309880,1771720240267,-500.0,0.00017999,2]
[406309881,1771720240276,-500.0,0.00017999,2]
[406309882,1771720240285,-500.0,0.00017999,2]
[406309883,1771720240295,-500.0,0.00017999,2]
[406309884,1771720240305,-650.0,0.00017999,2]
[406309885,1771720240315,-1749462.27512284,0.00018,2]
[406309886,1771720240327,-745125.8740235,0.00018,2]
[406309887,1771720240339,-1636.34143493,0.00018,2]
[406309888,1771720240351,-3034.0340222,0.00018,2]
[406309889,1771720240362,-5021.90947583,0.00018,2]
[406309890,1771720240376,-922.18333418,0.00018,2]
[406309891,1771720240391,-1405.08006027,0.00018,2]
[406309893,1771720240403,-1587.711,0.00018,2]
[406309894,1771720240414,-1019.01536203,0.00018,2]
[406309895,1771720240426,-9759.37418147,0.00018,2]
[406309896,1771720240435,-207.865694,0.00018,2]
[406309897,1771720240443,-207.865694,0.00018,2]
[406309898,1771720240452,-207.865694,0.00018,2]
[406309899,1771720240461,-207.865694,0.00018,2]
[406309900,1771720240470,-542.272363,0.00018,2]
[406309901,1771720240479,-542.272363,0.00018,2]
[406309902,1771720240488,-542.272363,0.00018,2]
[406309903,1771720240498,-542.272363,0.00018,2]
[406309904,1771720240508,-2402.37669,0.00018,2]
[406309905,1771720240516,-2402.37669,0.00018,2]
[406309906,1771720240525,-635.623931,0.00018,2]
[406309907,1771720240534,-2402.37669,0.00018,2]
[406309908,1771720240545,-635.623931,0.00018,2]
[406309909,1771720240555,-2402.37669,0.00018,2]
[406309910,1771720240564,-635.623931,0.00018,2]
[406309911,1771720240574,-635.623931,0.00018,2]
[406309912,1771720240583,-1570.21731619,0.00018173,2]
[406309913,1771720240594,-190.5430067,0.00018173,3]
[406309914,1771720240603,-173.51640182,0.00018173,2]
[406309915,1771720240613,-8823.48960661,0.0001824,2]
[406309916,1771720240623,-642.57522524,0.00018273,2]
[406309917,1771720240633,-2351.0,0.00018289,2]
[406309918,1771720240643,-2703.66972664,0.0001834,2]
[406309919,1771720240651,-500.0,0.0001854,2]
[406309920,1771720240660,-162.49543587,0.0001854,2]
[406309921,1771720240670,-500.0,0.0001854,2]
[406309922,1771720240679,-500.0,0.0001854,2]
[406309923,1771720240689,-332.93865157,0.0001854,2]
[406309924,1771720240698,-500.0,0.0001854,2]
[406309925,1771720240707,-186.27479896,0.0001854,2]
[406309926,1771720240715,-200.0,0.00019082,2]
[406309927,1771720240724,-500.0,0.00019088,2]
[406309928,1771720240733,-514.03988287,0.00019088,2]
[406309929,1771720240743,-173.74378417,0.00019126,2]
[406309930,1771720240752,-151.0,0.00019178,2]
[406309931,1771720240761,-150.0,0.00019178,2]
[406309932,1771720240774,-250.0,0.00019726,2]
[406309933,1771720240784,-155.0,0.00019799,2]
[406309934,1771720240793,-3292.0,0.00020116,2]
[406309935,1771720240802,-265.93928549,0.00020274,2]
[406309936,1771720240811,-200.7,0.00020401,5]
[406309937,1771720240820,-150.0,0.00020973,2]
[406309938,1771720240830,-1197.42575804,0.00021,2]
[406309939,1771720240838,-197.64508144,0.00021,2]
[406309940,1771720240847,-110374.60423123,0.00021,2]
[406309941,1771720240856,-8823.48960657,0.0002121,2]
[406309942,1771720240866,-2703.66972656,0.00021299,2]
[406309943,1771720240874,-222.97430806,0.000215,2]
[406309944,1771720240883,-151.0,0.00021626,2]
[406309945,1771720240892,-207.865694,0.00021626,2]
[406309946,1771720240901,-207.865694,0.00021626,2]
[406309947,1771720240910,-207.865694,0.00021626,2]
[406309948,1771720240919,-207.865694,0.00021626,2]
[406309949,1771720240929,-542.272363,0.00021626,2]
[406309950,1771720240938,-542.272363,0.00021626,2]
[406309951,1771720240947,-542.272363,0.00021626,2]
[406309952,1771720240956,-542.272363,0.00021626,2]
[406309953,1771720240965,-2402.37669,0.00021626,2]
[406309954,1771720240975,-2402.37669,0.00021626,2]
[406309955,1771720240984,-635.623931,0.00021626,2]
[406309956,1771720240993,-2402.37669,0.00021626,2]
[406309957,1771720241002,-635.623931,0.00021626,2]
[406309958,1771720241012,-2402.37669,0.00021626,2]
[406309959,1771720241021,-635.623931,0.00021626,2]
[406309960,1771720241031,-635.623931,0.00021626,2]
[406309961,1771720241040,-198.717974,0.00021918,2]
[406309962,1771720241049,-198.717974,0.00021918,2]
[406309963,1771720241058,-198.717974,0.00021918,2]
[406309964,1771720241069,-198.717974,0.00021918,2]
[406309965,1771720241081,-198.717974,0.00021918,2]
[406309966,1771720241090,-198.717974,0.00021918,2]
[406309967,1771720241100,-198.717974,0.00021918,2]
[406309968,1771720241110,-198.717974,0.00021918,2]
[406309969,1771720241119,-132434.68950569,0.00022,2]
[406309970,1771720241128,-163.53,0.00022,2]
[406309971,1771720241142,-160.0,0.00022,2]
[406309972,1771720241151,-496.42397569,0.000221,2]
[406309973,1771720241160,-241.22058511,0.0002211,2]
[406309974,1771720241169,-412.0,0.00022124,2]
[406309975,1771720241178,-375.59,0.000223,7]
[406309976,1771720241188,-322.91,0.00022636,2]
[406309977,1771720241197,-525.36364149,0.0002271,2]
[406309978,1771720241206,-304887.24803165,0.00023,2]
[406309979,1771720241215,-151.0,0.00023,2]
[406309980,1771720241224,-207.865694,0.00023,2]
[406309981,1771720241234,-207.865694,0.00023,2]
[406309982,1771720241243,-207.865694,0.00023,2]
[406309983,1771720241253,-207.865694,0.00023,2]
[406309984,1771720241262,-542.272363,0.00023,2]
[406309985,1771720241271,-542.272363,0.00023,2]
[406309986,1771720241280,-542.272363,0.00023,2]
[406309987,1771720241290,-542.272363,0.00023,2]
[406309988,1771720241299,-198.717974,0.00023,2]
[406309989,1771720241308,-198.717974,0.00023,2]
[406309990,1771720241317,-198.717974,0.00023,2]
[406309991,1771720241327,-198.717974,0.00023,2]
[406309992,1771720241336,-2402.37669,0.00023,2]
[406309993,1771720241346,-2402.37669,0.00023,2]
[406309994,1771720241356,-635.623931,0.00023,2]
[406309995,1771720241365,-2402.37669,0.00023,2]
[406309996,1771720241375,-635.623931,0.00023,2]
[406309997,1771720241384,-2402.37669,0.00023,2]
[406309998,1771720241394,-635.623931,0.00023,2]
[406309999,1771720241405,-635.623931,0.00023,2]
[406310000,1771720241414,-667.88518278,0.000232,2]
[406310001,1771720241423,-180.21,0.00023207,2]
[406310002,1771720241433,-200.0,0.00023234,8]
[406310003,1771720241443,-2912.32495921,0.00023314,2]
[406310004,1771720241453,-200.0,0.000235,2]
[406310005,1771720241463,-1025.79563103,0.00024,2]
[406310006,1771720241472,-1240.39290392,0.00024,2]
[406310007,1771720241481,-8823.48960657,0.0002418,2]
[406310008,1771720241490,-423.76381575,0.0002421,2]
[406310009,1771720241499,-7637.881082,0.00024225,30]
[406310010,1771720241508,-2703.66972656,0.00024258,2]
[406310011,1771720241517,-151.0,0.00024658,2]
[406310012,1771720241527,-192.46,0.00024786,2]
[406310013,1771720241536,-1116.22294843,0.00025,2]
[406310014,1771720241544,-207.94066833,0.00025,2]
[406310015,1771720241553,-1788.55597662,0.00025,2]
[406310016,1771720241562,-540.0,0.00025,2]
[406310017,1771720241571,-612.16982898,0.00025,2]
[406310018,1771720241580,-3050.78782243,0.00025,2]
[406310019,1771720241588,-167.66928281,0.00025,2]
[406310020,1771720241598,-167.45,0.0002513,7]
[406310021,1771720241608,-1321.9,0.0002559,2]
[406310022,1771720241616,-1483.460532,0.00025649,30]
[406310023,1771720241627,-786.96,0.00025717,2]
[406310024,1771720241636,-1275.0,0.00025818,2]
[406310025,1771720241645,-1209.0,0.00025818,2]
[406310026,1771720241653,-1039.0,0.00025818,2]
[406310027,1771720241662,-1338.0,0.00025818,2]
[406310028,1771720241671,-618.0,0.00025818,2]
[406310029,1771720241680,-602.21629743,0.0002599,2]
[406310030,1771720241689,-216.96045593,0.00026,2]
[406310031,1771720241698,-200.0,0.00026068,12]
[406310032,1771720241706,-216.53518297,0.000263,2]
[406310033,1771720241716,-27539.4783723,0.000264,2]
[406310034,1771720241725,-150.0,0.00026588,30]
[406310035,1771720241734,-236.0,0.00026588,30]
[406310036,1771720241742,-207.0,0.00026588,120]
[406310037,1771720241752,-250.0,0.00027,2]
[406310038,1771720241761,-1036.96878042,0.00027,2]
[406310039,1771720241773,-530.0,0.00027,2]
[406310040,1771720241783,-8823.48960657,0.0002715,2]
[406310041,1771720241792,-2703.66972656,0.00027217,2]
[406310042,1771720241802,-4121.26232887,0.0002739,2]
[406310043,1771720241811,-8142.60566174,0.0002739,2]
[406310044,1771720241820,-520.81,0.00027397,2]
[406310045,1771720241829,-300.0,0.00027397,2]
[406310046,1771720241839,-351.470842,0.00027397,2]
[406310047,1771720241849,-351.470842,0.00027397,2]
[406310048,1771720241858,-351.470842,0.00027397,2]
[406310049,1771720241867,-351.470842,0.00027397,2]
[406310050,1771720241877,-375.59,0.000274,7]
[406310051,1771720241887,-201.78613735,0.000275,2]
[406310052,1771720241896,-551.23383659,0.000275,2]
[406310053,1771720241907,-1852.42,0.00027933,2]
[406310054,1771720241917,-51004.6920076,0.00028,2]
[406310055,1771720241926,-14970.06557942,0.00028,60]
[406310056,1771720241934,-251.685089,0.00028,7]
[406310057,1771720241943,-160.0,0.00028,2]
[406310058,1771720241952,-351.470842,0.00028,7]
[406310059,1771720241961,-351.470842,0.00028,7]
[406310060,1771720241970,-351.470842,0.00028,7]
[406310061,1771720241980,-351.470842,0.00028,7]
[406310062,1771720241989,-151.0,0.00028,7]
[406310063,1771720241998,-207.865694,0.00028,7]
[406310064,1771720242007,-207.865694,0.00028,7]
[406310065,1771720242017,-207.865694,0.00028,7]
[406310066,1771720242026,-207.865694,0.00028,7]
[406310067,1771720242035,-542.272363,0.00028,7]
[406310068,1771720242044,-542.272363,0.00028,7]
[406310069,1771720242053,-542.272363,0.00028,7]
[406310070,1771720242062,-542.272363,0.00028,7]
[406310071,1771720242072,-198.717974,0.00028,7]
[406310072,1771720242081,-198.717974,0.00028,7]
[406310073,1771720242091,-198.717974,0.00028,7]
[406310074,1771720242099,-198.717974,0.00028,7]
[406310075,1771720242109,-2402.37669,0.00028,7]
[406310076,1771720242119,-2402.37669,0.00028,7]
[406310077,1771720242128,-635.623931,0.00028,7]
[406310078,1771720242137,-2402.37669,0.00028,7]
[406310079,1771720242146,-635.623931,0.00028,7]
[406310080,1771720242156,-2402.37669,0.00028,7]
[406310081,1771720242164,-635.623931,0.00028,7]
[406310082,1771720242173,-635.623931,0.00028,7]
[406310083,1771720242183,-484.03,0.00028217,2]
[406310084,1771720242192,-167.45,0.00028454,30]
[406310085,1771720242201,-306.70242982,0.00028572,2]
[406310086,1771720242210,-484.03,0.00028588,2]
[406310087,1771720242219,-2912.32495921,0.00028728,2]